fUST/lending_fUST_20240423
["ID","MTS","AMOUNT","RATE_DAILY","PERIOD"]
[323199699,1713803448778,-302.4468842,0.00019178,2]
[323199700,1713803448787,-500.0,0.00019178,2]
[323199701,1713803448797,-220.11389809,0.00019178,2]
[323199702,1713803448807,-219.565655,0.00019178,2]
[323199703,1713803448818,-219.565655,0.00019178,2]
[323199704,1713803448828,-219.565655,0.00019178,2]
[323199705,1713803448838,-151.0,0.00019178,2]
[323199706,1713803448847,-151.0,0.00019178,2]
[323199707,1713803448857,-151.0,0.00019178,2]
[323199708,1713803448867,-219.565655,0.00019178,2]
[323199709,1713803448877,-151.0,0.00019178,2]
[323199710,1713803448887,-219.565655,0.00019178,2]
[323199711,1713803448897,-219.565655,0.00019178,2]
[323199712,1713803448907,-152.946053,0.00019178,2]
[323199713,1713803448916,-153.839684,0.00019178,2]
[323199714,1713803448926,-184.125163,0.00019178,2]
[323199715,1713803448937,-184.125163,0.00019178,2]
[323199716,1713803448948,-184.125163,0.00019178,2]
[323199717,1713803448957,-184.125163,0.00019178,2]
[323199718,1713803448966,-184.125163,0.00019178,2]
[323199719,1713803448976,-184.125163,0.00019178,2]
[323199720,1713803448985,-184.125163,0.00019178,2]
[323199721,1713803448994,-184.125163,0.00019178,2]
[323199722,1713803449004,-192.747871,0.00019178,2]
[323199723,1713803449013,-192.747871,0.00019178,2]
[323199724,1713803449024,-192.747871,0.00019178,2]
[323199725,1713803449033,-192.747871,0.00019178,2]
[323199726,1713803449043,-192.747871,0.00019178,2]
[323199727,1713803449052,-192.747871,0.00019178,2]
[323199728,1713803449061,-192.747871,0.00019178,2]
[323199729,1713803449071,-192.747871,0.00019178,2]
[323199730,1713803449080,-281.31251,0.00019178,2]
[323199731,1713803449089,-151.0,0.00019178,2]
[323199732,1713803449098,-206.449174,0.00019178,2]
[323199733,1713803449107,-197.354673,0.00019178,2]
[323199734,1713803449116,-197.354673,0.00019178,2]
[323199735,1713803449239,-197.354673,0.00019178,2]
[323199736,1713803449249,-197.354673,0.00019178,2]
[323199737,1713803449258,-197.354673,0.00019178,2]
[323199738,1713803449268,-197.354673,0.00019178,2]
[323199739,1713803449279,-197.354673,0.00019178,2]
[323199740,1713803449289,-197.354673,0.00019178,2]
[323199741,1713803449298,-197.354673,0.00019178,2]
[323199742,1713803449308,-197.354671,0.00019178,2]
[323199743,1713803449318,-151.0,0.00019178,2]
[323199744,1713803449328,-153.472085,0.00019178,2]
[323199745,1713803449337,-970.060575,0.00019178,2]
[323199746,1713803449347,-970.060575,0.00019178,2]
[323199747,1713803449356,-970.060575,0.00019178,2]
[323199748,1713803449366,-970.060575,0.00019178,2]
[323199749,1713803449376,-970.060575,0.00019178,2]
[323199750,1713803449385,-970.060575,0.00019178,2]
[323199751,1713803449395,-970.060575,0.00019178,2]
[323199752,1713803449404,-970.060575,0.00019178,2]
[323199753,1713803449414,-970.060575,0.00019178,2]
[323199754,1713803449423,-970.060575,0.00019178,2]
[323199755,1713803449433,-151.0,0.00019178,2]
[323199756,1713803449442,-151.0,0.00019178,2]
[323199757,1713803449452,-151.0,0.00019178,2]
[323199758,1713803449462,-151.0,0.00019178,2]
[323199759,1713803449471,-151.0,0.00019178,2]
[323199760,1713803449481,-151.0,0.00019178,2]
[323199761,1713803449491,-229.944661,0.00019178,2]
[323199762,1713803449501,-496.10316,0.00019178,2]
[323199763,1713803449510,-496.10316,0.00019178,2]
[323199764,1713803449524,-496.10316,0.00019178,2]
[323199765,1713803449533,-496.10316,0.00019178,2]
[323199766,1713803449543,-496.10316,0.00019178,2]
[323199767,1713803449552,-496.10316,0.00019178,2]
[323199768,1713803449563,-496.10316,0.00019178,2]
[323199769,1713803449573,-496.103166,0.00019178,2]
[323199770,1713803449582,-188.680269,0.00019178,2]
[323199771,1713803449591,-188.680269,0.00019178,2]
[323199772,1713803449602,-188.680269,0.00019178,2]
[323199773,1713803449612,-151.0,0.00019178,2]
[323199774,1713803449622,-295.730902,0.00019178,2]
[323199775,1713803449631,-188.680269,0.00019178,2]
[323199776,1713803449640,-188.680269,0.00019178,2]
[323199777,1713803449649,-188.680274,0.00019178,2]
[323199778,1713803449659,-151.0,0.00019178,2]
[323199779,1713803449670,-151.0,0.00019178,2]
[323199780,1713803449679,-151.0,0.00019178,2]
[323199781,1713803449689,-151.0,0.00019178,2]
[323199782,1713803449698,-151.0,0.00019178,2]
[323199783,1713803449708,-169.783805,0.00019178,2]
[323199784,1713803449718,-4624.311749,0.00019178,2]
[323199785,1713803449727,-4624.311749,0.00019178,2]
[323199786,1713803449737,-4624.311749,0.00019178,2]
[323199787,1713803449746,-4624.311749,0.00019178,2]
[323199788,1713803449757,-4624.311749,0.00019178,2]
[323199789,1713803449766,-4624.311749,0.00019178,2]
[323199790,1713803449778,-4624.311749,0.00019178,2]
[323199791,1713803449787,-4624.311758,0.00019178,2]
[323199792,1713803449797,-199.662188,0.00019178,2]
[323199793,1713803449806,-199.662188,0.00019178,2]
[323199794,1713803449816,-199.662188,0.00019178,2]
[323199795,1713803449825,-199.662188,0.00019178,2]
[323199796,1713803449834,-199.662188,0.00019178,2]
[323199797,1713803449844,-199.662188,0.00019178,2]
[323199798,1713803449853,-199.662188,0.00019178,2]
[323199799,1713803449863,-199.66219,0.00019178,2]
[323199800,1713803449872,-1053.19012,0.00019178,2]
[323199801,1713803449881,-1053.19012,0.00019178,2]
[323199802,1713803449891,-1053.19012,0.00019178,2]
[323199803,1713803449901,-1053.19012,0.00019178,2]
[323199804,1713803449910,-1053.19012,0.00019178,2]
[323199805,1713803449919,-1053.19012,0.00019178,2]
[323199806,1713803449929,-1053.19012,0.00019178,2]
[323199807,1713803449938,-1053.19011584,0.00019178,2]
[323199808,1713803449948,-518.602974,0.00019178,2]
[323199809,1713803449958,-518.602974,0.00019178,2]
[323199810,1713803449967,-518.602974,0.00019178,2]
[323199811,1713803449977,-518.602974,0.00019178,2]
[323199812,1713803449987,-518.602974,0.00019178,2]
[323199813,1713803449996,-518.602974,0.00019178,2]
[323199814,1713803450006,-518.602974,0.00019178,2]
[323199815,1713803450016,-518.602973,0.00019178,2]
[323199816,1713803450028,-151.0,0.00019178,2]
[323199817,1713803450038,-151.0,0.00019178,2]
[323199818,1713803450047,-151.0,0.00019178,2]
[323199819,1713803450057,-151.0,0.00019178,2]
[323199820,1713803450066,-151.0,0.00019178,2]
[323199821,1713803450075,-151.0,0.00019178,2]
[323199822,1713803450085,-480.101607,0.00019178,2]
[323199823,1713803450094,-480.101607,0.00019178,2]
[323199824,1713803450104,-480.101607,0.00019178,2]
[323199825,1713803450113,-2051.970354,0.00019178,2]
[323199826,1713803450122,-2051.970354,0.00019178,2]
[323199827,1713803450132,-480.101607,0.00019178,2]
[323199828,1713803450141,-480.101607,0.00019178,2]
[323199829,1713803450151,-480.101604,0.00019178,2]
[323199830,1713803450161,-2051.970354,0.00019178,2]
[323199831,1713803450170,-2051.970352,0.00019178,2]
[323199832,1713803450179,-823.300687,0.00019178,2]
[323199833,1713803450188,-823.300687,0.00019178,2]
[323199834,1713803450197,-823.300687,0.00019178,2]
[323199835,1713803450206,-823.300686,0.00019178,2]
[323199836,1713803450215,-779.468249,0.00019178,2]
[323199837,1713803450225,-779.468249,0.00019178,2]
[323199838,1713803450234,-779.468249,0.00019178,2]
[323199839,1713803450243,-779.46825,0.00019178,2]
[323199840,1713803450253,-197.859325,0.00019178,2]
[323199841,1713803450263,-197.859325,0.00019178,2]
[323199842,1713803450272,-197.859325,0.00019178,2]
[323199843,1713803450284,-197.859333,0.00019178,2]
[323199844,1713803450293,-151.0,0.00019178,2]
[323199845,1713803450302,-151.0,0.00019178,2]
[323199846,1713803450311,-400.65062776,0.00019178,2]
[323199847,1713803450321,-168.085034,0.00019178,2]
[323199848,1713803450331,-167.518836,0.00019178,2]
[323199849,1713803450340,-167.3920729,0.00019178,2]
[323199850,1713803450350,-219.565655,0.00019205,2]
[323199851,1713803450360,-151.0,0.00019205,2]
[323199852,1713803450370,-219.565655,0.00019205,2]
[323199853,1713803450380,-184.125163,0.00019205,2]
[323199854,1713803450389,-184.125163,0.00019205,2]
[323199855,1713803450399,-192.747871,0.00019205,2]
[323199856,1713803450408,-192.747866,0.00019205,2]
[323199857,1713803450418,-620.00241604,0.00019447,2]
[323199858,1713803450428,-1016.00046324,0.00019494,2]
[323199859,1713803450438,-300.73540814,0.00019588,2]
[323199860,1713803450448,-154.84515485,0.00019682,2]
[323199861,1713803450457,-202.16239243,0.00019682,2]
[323199862,1713803450467,-219.565655,0.000199,2]
[323199863,1713803450476,-151.0,0.000199,2]
[323199864,1713803450486,-219.565655,0.000199,2]
[323199865,1713803450495,-184.125163,0.000199,2]
[323199866,1713803450510,-184.125165,0.000199,2]
[323199867,1713803450520,-154.95956213,0.00019997,2]
[323199868,1713803450532,-319.6542586,0.0002,2]
[323199869,1713803450543,-400.0,0.0002,2]
[323199870,1713803450552,-243.06876418,0.0002,2]
[323199871,1713803450561,-386.02707535,0.0002,2]
[323199872,1713803450571,-689.33608369,0.0002,2]
[323199873,1713803450580,-677.92303889,0.0002,2]
[323199874,1713803450590,-155.00521679,0.0002,2]
[323199875,1713803450599,-2546.388098,0.0002,2]
[323199876,1713803450609,-5458.5886175,0.0002,2]
[323199877,1713803450619,-154.95351395,0.0002,2]
[323199878,1713803450628,-277.93550668,0.0002,2]
[323199879,1713803450638,-2000.0,0.0002,2]
[323199880,1713803450647,-2000.0,0.0002,2]
[323199881,1713803450656,-2000.0,0.0002,2]
[323199882,1713803450666,-1416.0,0.0002,2]
[323199883,1713803450676,-34717.29512581,0.0002,2]
[323199884,1713803450685,-219.565655,0.0002,2]
[323199885,1713803450696,-219.565655,0.0002,2]
[323199886,1713803450705,-219.565655,0.0002,2]
[323199887,1713803450715,-219.565646,0.0002,2]
[323199888,1713803450725,-200.0,0.0002,2]
[323199889,1713803450734,-31767.85822671,0.0002,2]
[323199890,1713803450744,-2258.0,0.00020066,2]
[323199891,1713803450754,-150.0,0.0002011,2]
[323199892,1713803450764,-154.87609912,0.00020287,2]
[323199893,1713803450775,-32391.30055005,0.000204,2]
[323199894,1713803450785,-620.0001208,0.00020419,2]
[323199895,1713803450795,-2046.013221,0.00020548,2]
[323199896,1713803450805,-146770.0,0.00020698,2]
[323199897,1713803450815,-2000.0,0.000208,2]
[323199898,1713803450825,-202.14637118,0.00020855,2]
[323199899,1713803450835,-272.27940266,0.00020968,2]
[323199900,1713803450845,-155.0802538,0.00020974,2]
[323199901,1713803450855,-7922.27811258,0.00021,2]
[323199902,1713803450864,-236.31853297,0.00021,2]
[323199903,1713803450874,-628.64235314,0.00021,2]
[323199904,1713803450884,-7167.17245739,0.00021,2]
[323199905,1713803450894,-2476.05099914,0.00021,2]
[323199906,1713803450904,-21283.2101341,0.00021,2]
[323199907,1713803450914,-390.71227007,0.00021011,2]
[323199908,1713803450923,-1000.0,0.00021016,2]
[323199909,1713803450934,-150.0,0.0002111,2]
[323199910,1713803450944,-417.0,0.00021288,2]
[323199911,1713803450953,-283.0,0.000214,2]
[323199912,1713803450963,-283.0,0.000214,2]
[323199913,1713803450972,-620.00000604,0.0002144,2]
[323199914,1713803450981,-2000.0,0.000218,2]
[323199915,1713803450990,-676.83616858,0.00021916,2]
[323199916,1713803451000,-501.10625939,0.00021917,2]
[323199917,1713803451009,-500.0,0.00021917,2]
[323199918,1713803451019,-500.0,0.00021917,2]
[323199919,1713803451031,-500.0,0.00021917,2]
[323199920,1713803451040,-500.0,0.00021917,2]
[323199921,1713803451049,-500.0,0.00021917,2]
[323199922,1713803451059,-500.0,0.00021917,2]
[323199923,1713803451068,-500.0,0.00021917,2]
[323199924,1713803451077,-204.29057813,0.00021917,2]
[323199925,1713803451086,-500.0,0.00021917,2]
[323199926,1713803451095,-500.0,0.00021917,2]
[323199927,1713803451105,-385.49374237,0.00021917,2]
[323199928,1713803451115,-500.0,0.00021917,2]
[323199929,1713803451124,-500.0,0.00021917,2]
[323199930,1713803451133,-500.0,0.00021917,2]
[323199931,1713803451143,-500.0,0.00021917,2]
[323199932,1713803451152,-502.88652083,0.00021917,2]
[323199933,1713803451162,-501.53007906,0.00021917,2]
[323199934,1713803451172,-500.0,0.00021917,2]
[323199935,1713803451181,-500.0,0.00021917,2]
[323199936,1713803451191,-500.0,0.00021917,2]
[323199937,1713803451201,-500.0,0.00021917,2]
[323199938,1713803451211,-528.24,0.00021917,2]
[323199939,1713803451220,-500.0,0.00021917,2]
[323199940,1713803451230,-500.0,0.00021917,2]
[323199941,1713803451239,-500.0,0.00021917,2]
[323199942,1713803451249,-500.0,0.00021917,2]
[323199943,1713803451258,-544.97,0.00021917,2]
[323199944,1713803451267,-500.0,0.00021917,2]
[323199945,1713803451280,-500.0,0.00021917,2]
[323199946,1713803451289,-500.0,0.00021917,2]
[323199947,1713803451301,-500.0,0.00021917,2]
[323199948,1713803451310,-500.0,0.00021917,2]
[323199949,1713803451320,-500.0,0.00021917,2]
[323199950,1713803451330,-374.35923372,0.00021917,2]
[323199951,1713803451340,-500.0,0.00021917,2]
[323199952,1713803451349,-500.0,0.00021917,2]
[323199953,1713803451359,-500.0,0.00021917,2]
[323199954,1713803451368,-500.0,0.00021917,2]
[323199955,1713803451378,-500.0,0.00021917,2]
[323199956,1713803451388,-527.08746567,0.00021917,2]
[323199957,1713803451397,-155.32306822,0.00021917,2]
[323199958,1713803451407,-208.83429179,0.00021917,2]
[323199959,1713803451416,-500.0,0.00021917,2]
[323199960,1713803451426,-500.0,0.00021917,2]
[323199961,1713803451435,-559.79,0.00021917,2]
[323199962,1713803451445,-904.94,0.00021917,2]
[323199963,1713803451454,-500.0,0.00021917,2]
[323199964,1713803451463,-534.78958072,0.00021917,2]
[323199965,1713803451473,-500.0,0.00021917,2]
[323199966,1713803451483,-500.0,0.00021917,2]
[323199967,1713803451493,-1277.37,0.00021917,2]
[323199968,1713803451505,-500.74986126,0.00021917,2]
[323199969,1713803451516,-509.3572482,0.00021917,2]
[323199970,1713803451527,-500.0,0.00021917,2]
[323199971,1713803451537,-500.0,0.00021917,2]
[323199972,1713803451547,-500.0,0.00021917,2]
[323199973,1713803451556,-500.0,0.00021917,2]
[323199974,1713803451566,-310.8013,0.00021917,2]
[323199975,1713803451575,-542.52862008,0.00021917,2]
[323199976,1713803451585,-500.0,0.00021917,2]
[323199977,1713803451596,-500.0,0.00021917,2]
[323199978,1713803451606,-500.0,0.00021917,2]
[323199979,1713803451615,-300.05130895,0.00021917,2]
[323199980,1713803451656,-500.0,0.00021917,2]
[323199981,1713803451666,-1183.54,0.00021917,2]
[323199982,1713803451675,-500.0,0.00021917,2]
[323199983,1713803451684,-500.0,0.00021917,2]
[323199984,1713803451693,-663.87,0.00021917,2]
[323199985,1713803451702,-190.98845366,0.00021917,2]
[323199986,1713803451711,-500.0,0.00021917,2]
[323199987,1713803451720,-504.6900771,0.00021917,2]
[323199988,1713803451729,-500.0,0.00021917,2]
[323199989,1713803451738,-500.0,0.00021917,2]
[323199990,1713803451747,-500.0,0.00021917,2]
[323199991,1713803451756,-500.0,0.00021917,2]
[323199992,1713803451765,-625.96,0.00021917,2]
[323199993,1713803451776,-500.0,0.00021917,2]
[323199994,1713803451785,-512.55524743,0.00021917,2]
[323199995,1713803451794,-500.0,0.00021917,2]
[323199996,1713803451804,-500.0,0.00021917,2]
[323199997,1713803451813,-500.0,0.00021917,2]
[323199998,1713803451822,-501.68196374,0.00021917,2]
[323199999,1713803451832,-500.0,0.00021917,2]
[323200000,1713803451841,-500.0,0.00021917,2]
[323200001,1713803451851,-500.0,0.00021917,2]
[323200002,1713803451860,-500.0,0.00021917,2]
[323200003,1713803451870,-500.0,0.00021917,2]
[323200004,1713803451880,-500.0,0.00021917,2]
[323200005,1713803451889,-500.0,0.00021917,2]
[323200006,1713803451899,-885.23,0.00021917,2]
[323200007,1713803451908,-513.30643347,0.00021917,2]
[323200008,1713803451917,-500.0,0.00021917,2]
[323200009,1713803451926,-500.0,0.00021917,2]
[323200010,1713803451935,-500.0,0.00021917,2]
[323200011,1713803451945,-500.0,0.00021917,2]
[323200012,1713803451954,-500.0,0.00021917,2]
[323200013,1713803451963,-500.0,0.00021917,2]
[323200014,1713803451972,-500.0,0.00021917,2]
[323200015,1713803451981,-500.0,0.00021917,2]
[323200016,1713803451990,-319.49675565,0.00021917,2]
[323200017,1713803451999,-500.0,0.00021917,2]
[323200018,1713803452008,-500.0,0.00021917,2]
[323200019,1713803452017,-500.0,0.00021917,2]
[323200020,1713803452028,-500.0,0.00021917,2]
[323200021,1713803452037,-483.94318884,0.00021917,2]
[323200022,1713803452046,-500.0,0.00021917,2]
[323200023,1713803452055,-500.0,0.00021917,2]
[323200024,1713803452064,-500.0,0.00021917,2]
[323200025,1713803452072,-500.0,0.00021917,2]
[323200026,1713803452082,-486.27533906,0.00021917,2]
[323200027,1713803452091,-503.18744206,0.00021917,2]
[323200028,1713803452099,-500.0,0.00021917,2]
[323200029,1713803452109,-500.0,0.00021917,2]
[323200030,1713803452117,-500.0,0.00021917,2]
[323200031,1713803452126,-500.0,0.00021917,2]
[323200032,1713803452135,-500.0,0.00021917,2]
[323200033,1713803452145,-500.0,0.00021917,2]
[323200034,1713803452154,-154.69030986,0.00021917,2]
[323200035,1713803452163,-517.26,0.00021917,2]
[323200036,1713803452173,-609.58007568,0.00021917,2]
[323200037,1713803452182,-527.47,0.00021917,2]
[323200038,1713803452191,-506.33566977,0.00021917,2]
[323200039,1713803452201,-558.97820698,0.00021917,2]
[323200040,1713803452211,-500.0,0.00021917,2]
[323200041,1713803452220,-500.0,0.00021917,2]
[323200042,1713803452230,-500.0,0.00021917,2]
[323200043,1713803452240,-500.0,0.00021917,2]
[323200044,1713803452250,-500.0,0.00021917,2]
[323200045,1713803452259,-500.0,0.00021917,2]
[323200046,1713803452269,-500.0,0.00021917,2]
[323200047,1713803452280,-500.0,0.00021917,2]
[323200048,1713803452290,-500.0,0.00021917,2]
[323200049,1713803452299,-500.0,0.00021917,2]
[323200050,1713803452309,-524.08030379,0.00021917,2]
[323200051,1713803452318,-500.0,0.00021917,2]
[323200052,1713803452328,-500.0,0.00021917,2]
[323200053,1713803452337,-500.0,0.00021917,2]
[323200054,1713803452347,-500.0,0.00021917,2]
[323200055,1713803452356,-500.0,0.00021917,2]
[323200056,1713803452366,-500.0,0.00021917,2]
[323200057,1713803452376,-500.0,0.00021917,2]
[323200058,1713803452385,-500.0,0.00021917,2]
[323200059,1713803452394,-531.99,0.00021917,2]
[323200060,1713803452404,-500.0,0.00021917,2]
[323200061,1713803452414,-500.0,0.00021917,2]
[323200062,1713803452423,-437.4507695,0.00021917,2]
[323200063,1713803452432,-522.04364305,0.00021917,2]
[323200064,1713803452442,-500.0,0.00021917,2]
[323200065,1713803452451,-320.51174596,0.00021917,2]
[323200066,1713803452460,-492.78831422,0.00021917,2]
[323200067,1713803452470,-500.40535893,0.00021917,2]
[323200068,1713803452479,-1948.33,0.00021917,2]
[323200069,1713803452488,-500.0,0.00021917,2]
[323200070,1713803452498,-500.0,0.00021917,2]
[323200071,1713803452507,-500.0,0.00021917,2]
[323200072,1713803452520,-501.56693012,0.00021917,2]
[323200073,1713803452531,-500.0,0.00021917,2]
[323200074,1713803452541,-500.0,0.00021917,2]
[323200075,1713803452551,-500.0,0.00021917,2]
[323200076,1713803452562,-500.0,0.00021917,2]
[323200077,1713803452571,-500.0,0.00021917,2]
[323200078,1713803452582,-500.0,0.00021917,2]
[323200079,1713803452593,-500.0,0.00021917,2]
[323200080,1713803452604,-500.0,0.00021917,2]
[323200081,1713803452614,-627.86,0.00021917,2]
[323200082,1713803452623,-544.5,0.00021917,2]
[323200083,1713803452633,-500.0,0.00021917,2]
[323200084,1713803452643,-500.0,0.00021917,2]
[323200085,1713803452652,-786.17,0.00021917,2]
[323200086,1713803452662,-500.0,0.00021917,2]
[323200087,1713803452671,-500.0,0.00021917,2]
[323200088,1713803452680,-2183.24,0.00021917,2]
[323200089,1713803452689,-505.48,0.00021917,2]
[323200090,1713803452699,-273.61434534,0.00021917,2]
[323200091,1713803452708,-500.0,0.00021917,2]
[323200092,1713803452718,-500.0,0.00021917,2]
[323200093,1713803452727,-500.0,0.00021917,2]
[323200094,1713803452737,-500.16446698,0.00021917,2]
[323200095,1713803452748,-500.0,0.00021917,2]
[323200096,1713803452757,-1145.36,0.00021917,2]
[323200097,1713803452766,-296.60357415,0.00021917,2]
[323200098,1713803452777,-500.0,0.00021917,2]
[323200099,1713803452786,-500.0,0.00021917,2]
[323200100,1713803452796,-500.0,0.00021917,2]
[323200101,1713803452806,-500.0,0.00021917,2]
[323200102,1713803452815,-1979.75,0.00021917,2]
[323200103,1713803452825,-500.0,0.00021917,2]
[323200104,1713803452834,-500.0,0.00021917,2]
[323200105,1713803452844,-500.0,0.00021917,2]
[323200106,1713803452853,-687.49,0.00021917,2]
[323200107,1713803452863,-500.0,0.00021917,2]
[323200108,1713803452872,-500.0,0.00021917,2]
[323200109,1713803452882,-500.0,0.00021917,2]
[323200110,1713803452891,-500.0,0.00021917,2]
[323200111,1713803452901,-2805.14,0.00021917,2]
[323200112,1713803452911,-500.0,0.00021917,2]
[323200113,1713803452920,-500.0,0.00021917,2]
[323200114,1713803452930,-1457.76,0.00021917,2]
[323200115,1713803452940,-513.3074354,0.00021917,2]
[323200116,1713803452950,-500.0,0.00021917,2]
[323200117,1713803452959,-500.0,0.00021917,2]
[323200118,1713803452969,-500.0,0.00021917,2]
[323200119,1713803452979,-500.0,0.00021917,2]
[323200120,1713803452989,-500.0,0.00021917,2]
[323200121,1713803452998,-500.0,0.00021917,2]
[323200122,1713803453008,-500.0,0.00021917,2]
[323200123,1713803453017,-500.0,0.00021917,2]
[323200124,1713803453028,-500.0,0.00021917,2]
[323200125,1713803453037,-500.0,0.00021917,2]
[323200126,1713803453056,-500.0,0.00021917,2]
[323200127,1713803453069,-500.0,0.00021917,2]
[323200128,1713803453080,-505.67530964,0.00021917,2]
[323200129,1713803453090,-615.64,0.00021917,2]
[323200130,1713803453100,-500.0,0.00021917,2]
[323200131,1713803453110,-338.59205646,0.00021917,2]
[323200132,1713803453119,-501.17896974,0.00021917,2]
[323200133,1713803453129,-288.5433409,0.00021917,2]
[323200134,1713803453139,-501.9183311,0.00021917,2]
[323200135,1713803453149,-544.83,0.00021917,2]
[323200136,1713803453159,-500.0,0.00021917,2]
[323200137,1713803453169,-17777.59,0.00021917,2]
[323200138,1713803453179,-500.0,0.00021917,2]
[323200139,1713803453190,-500.0,0.00021917,2]
[323200140,1713803453199,-500.0,0.00021917,2]
[323200141,1713803453210,-3448.49,0.00021917,2]
[323200142,1713803453220,-500.0,0.00021917,2]
[323200143,1713803453229,-500.0,0.00021917,2]
[323200144,1713803453240,-500.0,0.00021917,2]
[323200145,1713803453250,-500.0,0.00021917,2]
[323200146,1713803453260,-2063.27,0.00021917,2]
[323200147,1713803453270,-500.0,0.00021917,2]
[323200148,1713803453282,-500.0,0.00021917,2]
[323200149,1713803453291,-500.0,0.00021917,2]
[323200150,1713803453301,-500.0,0.00021917,2]
[323200151,1713803453311,-500.0,0.00021917,2]
[323200152,1713803453321,-500.0,0.00021917,2]
[323200153,1713803453331,-500.0,0.00021917,2]
[323200154,1713803453340,-500.0,0.00021917,2]
[323200155,1713803453350,-160.19034128,0.00021917,2]
[323200156,1713803453360,-500.0,0.00021917,2]
[323200157,1713803453370,-500.0,0.00021917,2]
[323200158,1713803453380,-500.0,0.00021917,2]
[323200159,1713803453390,-536.1,0.00021917,2]
[323200160,1713803453400,-500.0,0.00021917,2]
[323200161,1713803453410,-500.0,0.00021917,2]
[323200162,1713803453420,-500.0,0.00021917,2]
[323200163,1713803453430,-500.0,0.00021917,2]
[323200164,1713803453440,-500.0,0.00021917,2]
[323200165,1713803453450,-545.02829371,0.00021917,2]
[323200166,1713803453460,-559.93391095,0.00021917,2]
[323200167,1713803453471,-500.0,0.00021917,2]
[323200168,1713803453480,-500.0,0.00021917,2]
[323200169,1713803453490,-500.0,0.00021917,2]
[323200170,1713803453502,-500.0,0.00021917,2]
[323200171,1713803453514,-616.09003582,0.00021917,2]
[323200172,1713803453524,-500.3700883,0.00021917,2]
[323200173,1713803453537,-500.0,0.00021917,2]
[323200174,1713803453547,-500.0,0.00021917,2]
[323200175,1713803453557,-500.0,0.00021917,2]
[323200176,1713803453569,-500.0,0.00021917,2]
[323200177,1713803453578,-500.0,0.00021917,2]
[323200178,1713803453590,-500.0,0.00021917,2]
[323200179,1713803453601,-500.0,0.00021917,2]
[323200180,1713803453611,-500.0,0.00021917,2]
[323200181,1713803453622,-500.0,0.00021917,2]
[323200182,1713803453632,-500.0,0.00021917,2]
[323200183,1713803453642,-500.0,0.00021917,2]
[323200184,1713803453652,-500.0,0.00021917,2]
[323200185,1713803453662,-500.0,0.00021917,2]
[323200186,1713803453673,-500.0,0.00021917,2]
[323200187,1713803453683,-500.0,0.00021917,2]
[323200188,1713803453693,-500.0,0.00021917,2]
[323200189,1713803453702,-500.0,0.00021917,2]
[323200190,1713803453713,-500.0,0.00021917,2]
[323200191,1713803453723,-500.0,0.00021917,2]
[323200192,1713803453732,-500.0,0.00021917,2]
[323200193,1713803453742,-500.0,0.00021917,2]
[323200194,1713803453752,-500.0,0.00021917,2]
[323200195,1713803453762,-474.34,0.00021917,2]
[323200196,1713803453772,-566.18552631,0.00021917,2]
[323200197,1713803453783,-626.86,0.00021917,2]
[323200198,1713803453793,-958.49,0.00021917,2]